fUSD/lending_fUSD_20250225
["ID","MTS","AMOUNT","RATE_DAILY","PERIOD"]
[354449415,1740502885134,-608.57,0.00055068,120]
[354449416,1740502885160,-544.62,0.00055068,120]
[354449417,1740502885187,-500.0,0.00055068,120]
[354449418,1740502885213,-500.0,0.00055068,120]
[354449419,1740502885241,-500.0,0.00055068,120]
[354449420,1740502885268,-501.35,0.00055068,120]
[354449421,1740502885294,-2680.88,0.00055068,120]
[354449422,1740502885320,-753.78,0.00055068,120]
[354449423,1740502885347,-500.0,0.00055068,120]
[354449424,1740502885373,-755.31,0.00055068,120]
[354449425,1740502885400,-1016.18,0.00055068,120]
[354449426,1740502885427,-1916.43,0.00055068,120]
[354449427,1740502885455,-788.8,0.00055068,120]
[354449428,1740502885488,-256.033453,0.00055068,120]
[354449429,1740502885514,-244.999747,0.00055068,120]
[354449430,1740502885541,-500.0,0.00055068,120]
[354449431,1740502885568,-537.23,0.00055068,120]
[354449432,1740502885596,-500.0,0.00055068,120]
[354449433,1740502885623,-2038.09,0.00055068,120]
[354449434,1740502885652,-571.31,0.00055068,120]
[354449435,1740502885681,-496.79470383,0.00055068,120]
[354449436,1740502885708,-1886.6,0.00055068,120]
[354449437,1740502885737,-500.0,0.00055068,120]
[354449438,1740502885763,-500.0,0.00055068,120]
[354449439,1740502885790,-1690.5,0.00055068,120]
[354449440,1740502885817,-500.0,0.00055068,120]
[354449441,1740502885846,-2899.82,0.00055068,120]
[354449442,1740502885874,-500.0,0.00055068,120]
[354449443,1740502885902,-3872.29,0.00055068,120]
[354449444,1740502885930,-500.0,0.00055068,120]
[354449445,1740502885956,-502.60672186,0.00055068,120]
[354449446,1740502885986,-500.0,0.00055068,120]
[354449447,1740502886014,-2410.63,0.00055068,120]
[354449448,1740502886041,-511.16428784,0.00055068,120]
[354449449,1740502886069,-909.18,0.00055068,120]
[354449450,1740502886098,-2889.02,0.00055068,120]
[354449451,1740502886125,-500.0,0.00055068,120]
[354449452,1740502886154,-500.0,0.00055068,120]
[354449453,1740502886181,-500.0,0.00055068,120]
[354449454,1740502886208,-3060.55,0.00055068,120]
[354449455,1740502886237,-1166.29,0.00055068,120]
[354449456,1740502886265,-1746.54,0.00055068,120]
[354449457,1740502886291,-2817.01,0.00055068,120]
[354449458,1740502886318,-500.0,0.00055068,120]
[354449459,1740502886344,-255.804814,0.00055068,120]
[354449460,1740502886372,-246.007686,0.00055068,120]
[354449461,1740502886398,-500.0,0.00055068,120]
[354449462,1740502886424,-500.0,0.00055068,120]
[354449463,1740502886450,-500.0,0.00055068,120]
[354449464,1740502886475,-1319.72,0.00055068,120]
[354449465,1740502886507,-1480.57,0.00055068,120]
[354449466,1740502886534,-503.27,0.00055068,120]
[354449467,1740502886561,-779.97,0.00055068,120]
[354449468,1740502886588,-3177.44,0.00055068,120]
[354449469,1740502886801,-500.0,0.00055068,120]
[354449470,1740502886832,-503.66426435,0.00055068,120]
[354449471,1740502886859,-500.0,0.00055068,120]
[354449472,1740502886888,-836.49,0.00055068,120]
[354449473,1740502886916,-2888.7,0.00055068,120]
[354449474,1740502886943,-500.0,0.00055068,120]
[354449475,1740502886970,-500.0,0.00055068,120]
[354449476,1740502886997,-1067.68,0.00055068,120]
[354449477,1740502887023,-500.0,0.00055068,120]
[354449478,1740502887050,-500.0,0.00055068,120]
[354449479,1740502887078,-500.0,0.00055068,120]
[354449480,1740502887109,-2700.85,0.00055068,120]
[354449481,1740502887136,-2027.12,0.00055068,120]
[354449482,1740502887163,-370.18832778,0.00055068,120]
[354449483,1740502887191,-500.0,0.00055068,120]
[354449484,1740502887218,-500.0,0.00055068,120]
[354449485,1740502887247,-500.0,0.00055068,120]
[354449486,1740502887276,-243.670555,0.00055068,120]
[354449487,1740502887303,-1916.33,0.00055068,120]
[354449488,1740502887331,-500.0,0.00055068,120]
[354449489,1740502887361,-2185.01,0.00055068,120]
[354449490,1740502887387,-507.16276759,0.00055068,120]
[354449491,1740502887413,-500.0,0.00055068,120]
[354449492,1740502887440,-908.56,0.00055068,120]
[354449493,1740502887469,-2783.95,0.00055068,120]
[354449494,1740502887501,-1904.41,0.00055068,120]
[354449495,1740502887529,-1384.86,0.00055068,120]
[354449496,1740502887557,-524.08272751,0.00055068,120]
[354449497,1740502887588,-1610.34,0.00055068,120]
[354449498,1740502887615,-500.0,0.00055068,120]
[354449499,1740502887642,-1789.04,0.00055068,120]
[354449500,1740502887671,-2469.9,0.00055068,120]
[354449501,1740502887698,-1155.25,0.00055068,120]
[354449502,1740502887725,-3278.67,0.00055068,120]
[354449503,1740502887755,-3325.48,0.00055068,120]
[354449504,1740502887782,-500.0,0.00055068,120]
[354449505,1740502887810,-583.37,0.00055068,120]
[354449506,1740502887836,-696.32,0.00055068,120]
[354449507,1740502887863,-500.0,0.00055068,120]
[354449508,1740502887889,-504.97762926,0.00055068,120]
[354449509,1740502887915,-3458.48,0.00055068,120]
[354449510,1740502887941,-1248.34,0.00055068,120]
[354449511,1740502887967,-594.84403327,0.00055068,120]
[354449512,1740502887996,-717.45,0.00055068,120]
[354449513,1740502888022,-523.43294438,0.00055068,120]
[354449514,1740502888048,-696.52,0.00055068,120]
[354449515,1740502888074,-207.56440976,0.00055068,120]
[354449516,1740502888100,-1262.86,0.00055068,120]
[354449517,1740502888126,-1784.03,0.00055068,120]
[354449518,1740502888152,-3695.77,0.00055068,120]
[354449519,1740502888178,-500.0,0.00055068,120]
[354449520,1740502888204,-500.0,0.00055068,120]
[354449521,1740502888231,-1405.29,0.00055068,120]
[354449522,1740502888259,-260.340571,0.00055068,120]
[354449523,1740502888287,-4683.42,0.00055068,120]
[354449524,1740502888315,-500.0,0.00055068,120]
[354449525,1740502888340,-806.42,0.00055068,120]
[354449526,1740502888369,-1784.78,0.00055068,120]
[354449527,1740502888398,-4319.36,0.00055068,120]
[354449528,1740502888424,-1028.05,0.00055068,120]
[354449529,1740502888450,-500.0,0.00055068,120]
[354449530,1740502888477,-500.0,0.00055068,120]
[354449531,1740502888509,-1226.43,0.00055068,120]
[354449532,1740502888536,-2221.72,0.00055068,120]
[354449533,1740502888562,-504.73597562,0.00055068,120]
[354449534,1740502888590,-3435.08,0.00055068,120]
[354449535,1740502888616,-3182.34,0.00055068,100]
[354449536,1740502888643,-500.0,0.00055068,120]
[354449537,1740502888669,-1432.73,0.00055068,120]
[354449538,1740502888695,-505.26841425,0.00055068,120]
[354449539,1740502888721,-537.32,0.00055068,120]
[354449540,1740502888753,-2103.37,0.00055068,120]
[354449541,1740502888779,-1120.12,0.00055068,120]
[354449542,1740502888806,-500.0,0.00055068,120]
[354449543,1740502888832,-507.14008757,0.00055068,120]
[354449544,1740502888860,-238.609551,0.00055068,120]
[354449545,1740502888886,-500.0,0.00055068,120]
[354449546,1740502888913,-267.713793,0.00055068,120]
[354449547,1740502888938,-1509.45,0.00055068,120]
[354449548,1740502888964,-1042.13,0.00055068,120]
[354449549,1740502888992,-3401.29,0.00055068,120]
[354449550,1740502889019,-1098.21,0.00055068,120]
[354449551,1740502889044,-500.0,0.00055068,120]
[354449552,1740502889071,-3664.5,0.00055068,120]
[354449553,1740502889097,-501.7670183,0.00055068,120]
[354449554,1740502889125,-1523.22,0.00055068,120]
[354449555,1740502889156,-1000.0,0.00055068,120]
[354449556,1740502889181,-500.0,0.00055068,120]
[354449557,1740502889208,-500.0,0.00055068,120]
[354449558,1740502889235,-638.55,0.00055068,120]
[354449559,1740502889260,-1365.88,0.00055068,120]
[354449560,1740502889285,-2714.31,0.00055068,120]
[354449561,1740502889312,-4353.25,0.00055068,120]
[354449562,1740502889337,-500.0,0.00055068,120]
[354449563,1740502889534,-500.0,0.00055068,120]
[354449564,1740502889567,-2028.14,0.00055068,120]
[354449565,1740502889595,-700.38,0.00055068,120]
[354449566,1740502889621,-500.0,0.00055068,120]
[354449567,1740502889647,-500.0,0.00055068,120]
[354449568,1740502889676,-2882.79,0.00055068,120]
[354449569,1740502889702,-500.0,0.00055068,120]
[354449570,1740502889729,-1026.98,0.00055068,120]
[354449571,1740502889762,-232.157346,0.00055068,120]
[354449572,1740502889789,-500.0,0.00055068,120]
[354449573,1740502889816,-772.34,0.00055068,120]
[354449574,1740502889845,-275.462348,0.00055068,120]
[354449575,1740502889872,-500.0,0.00055068,120]
[354449576,1740502889900,-1746.43,0.00055068,120]
[354449577,1740502889929,-2198.53,0.00055068,120]
[354449578,1740502889954,-500.0,0.00055068,120]
[354449579,1740502889980,-951.87,0.00055068,120]
[354449580,1740502890009,-1916.34,0.00055068,120]
[354449581,1740502890036,-500.0,0.00055068,120]
[354449582,1740502890062,-708.0,0.00055068,120]
[354449583,1740502890089,-498.21513353,0.00055068,120]
[354449584,1740502890115,-500.0,0.00055068,120]
[354449585,1740502890141,-2428.81,0.00055068,120]
[354449586,1740502890169,-500.0,0.00055068,120]
[354449587,1740502890196,-1058.42,0.00055068,120]
[354449588,1740502890224,-615.47,0.00055068,120]
[354449589,1740502890252,-500.0,0.00055068,120]
[354449590,1740502890279,-3345.76,0.00055068,120]
[354449591,1740502890306,-1651.91,0.00055068,120]
[354449592,1740502890332,-500.0,0.00055068,120]
[354449593,1740502890364,-501.67585715,0.00055068,120]
[354449594,1740502890392,-5873.49,0.00055068,120]
[354449595,1740502890420,-500.0,0.00055068,120]
[354449596,1740502890448,-500.0,0.00055068,120]
[354449597,1740502890479,-500.0,0.00055068,120]
[354449598,1740502890511,-500.0,0.00055068,120]
[354449599,1740502890537,-1011.58,0.00055068,120]
[354449600,1740502890567,-2831.92,0.00055068,120]
[354449601,1740502890600,-500.0,0.00055068,120]
[354449602,1740502890629,-281.36948,0.00055068,120]
[354449603,1740502890656,-500.0,0.00055068,120]
[354449604,1740502890684,-226.487028,0.00055068,120]
[354449605,1740502890711,-1538.81,0.00055068,120]
[354449606,1740502890740,-933.24,0.00055068,120]
[354449607,1740502890767,-509.32,0.00055068,120]
[354449608,1740502890794,-500.0,0.00055068,120]
[354449609,1740502890821,-2803.61,0.00055068,120]
[354449610,1740502890847,-500.0,0.00055068,120]
[354449611,1740502890873,-500.0,0.00055068,120]
[354449612,1740502890900,-1870.97,0.00055068,120]
[354449613,1740502890926,-500.0,0.00055068,120]
[354449614,1740502890952,-500.0,0.00055068,60]
[354449615,1740502890978,-500.0,0.00055068,120]
[354449616,1740502891007,-1868.23,0.00055068,120]
[354449617,1740502891033,-743.73,0.00055068,120]
[354449618,1740502891061,-500.0,0.00055068,120]
[354449619,1740502891087,-500.0,0.00055068,120]
[354449620,1740502891113,-500.0,0.00055068,120]
[354449621,1740502891140,-1331.36,0.00055068,120]
[354449622,1740502891165,-150.0,0.00055068,120]
[354449623,1740502891190,-500.0,0.00055068,120]
[354449624,1740502891216,-500.0,0.00055068,120]
[354449625,1740502891243,-500.0,0.00055068,120]
[354449626,1740502891269,-500.0,0.00055068,120]
[354449627,1740502891297,-500.0,0.00055068,120]
[354449628,1740502891324,-500.0,0.00055068,120]
[354449629,1740502891351,-3552.32,0.00055068,120]
[354449630,1740502891378,-2786.68,0.00055068,120]
[354449631,1740502891404,-2536.11,0.00055068,120]
[354449632,1740502891431,-500.0,0.00055068,120]
[354449633,1740502891456,-3952.9104907,0.00055068,120]
[354449634,1740502891482,-2394.77,0.00055068,120]
[354449635,1740502891514,-283.924244,0.00055068,120]
[354449636,1740502891540,-500.0,0.00055068,120]
[354449637,1740502891566,-650.97,0.00055068,120]
[354449638,1740502891592,-500.0,0.00055068,120]
[354449639,1740502891618,-550.6,0.00055068,120]
[354449640,1740502891646,-223.642741,0.00055068,120]
[354449641,1740502891672,-500.0,0.00055068,120]
[354449642,1740502891700,-500.0,0.00055068,120]
[354449643,1740502891726,-9177.36,0.00055068,120]
[354449644,1740502891753,-500.0,0.00055068,120]
[354449645,1740502891780,-1934.53,0.00055068,120]
[354449646,1740502891806,-500.0,0.00055068,120]
[354449647,1740502891832,-500.0,0.00055068,120]
[354449648,1740502891857,-500.0,0.00055068,120]
[354449649,1740502891883,-500.0,0.00055068,120]
[354449650,1740502891909,-500.0,0.00055068,120]
[354449651,1740502891935,-500.0,0.00055068,120]
[354449652,1740502891961,-1654.47,0.00055068,120]
[354449653,1740502891988,-500.0,0.00055068,120]
[354449654,1740502892014,-500.0,0.00055068,120]
[354449655,1740502892041,-500.0,0.00055068,120]
[354449656,1740502892068,-500.0,0.00055068,120]
[354449657,1740502892095,-500.0,0.00055068,120]
[354449658,1740502892298,-844.31,0.00055068,120]
[354449659,1740502892326,-500.0,0.00055068,120]
[354449660,1740502892354,-682.12,0.00055068,120]
[354449661,1740502892380,-504.06297161,0.00055068,120]
[354449662,1740502892408,-230.4934614,0.00055068,120]
[354449663,1740502892439,-555.78,0.00055068,120]
[354449664,1740502892468,-751.56,0.00055068,120]
[354449665,1740502892498,-1393.2,0.00055068,120]
[354449666,1740502892527,-500.0,0.00055068,120]
[354449667,1740502892561,-500.0,0.00055068,120]
[354449668,1740502892595,-769.03,0.00055068,120]
[354449669,1740502892625,-500.0,0.00055068,120]
[354449670,1740502892654,-224.408676,0.00055068,120]
[354449671,1740502892683,-500.0,0.00055068,120]
[354449672,1740502892712,-556.56295232,0.00055068,120]
[354449673,1740502892743,-506.02410196,0.00055068,120]
[354449674,1740502892770,-2257.37,0.00055068,120]
[354449675,1740502892797,-500.0,0.00055068,120]
[354449676,1740502892824,-743.02,0.00055068,120]
[354449677,1740502892851,-476.17472258,0.00055068,120]
[354449678,1740502892878,-500.0,0.00055068,120]
[354449679,1740502892906,-775.32,0.00055068,120]
[354449680,1740502892935,-500.0,0.00055068,120]
[354449681,1740502892963,-627.18,0.00055068,120]
[354449682,1740502892994,-750.91,0.00055068,120]
[354449683,1740502893022,-1521.47,0.00055068,120]
[354449684,1740502893052,-507.16490529,0.00055068,120]
[354449685,1740502893082,-684.6,0.00055068,120]
[354449686,1740502893110,-500.0,0.00055068,120]
[354449687,1740502893139,-500.0,0.00055068,120]
[354449688,1740502893167,-502.70348201,0.00055068,120]
[354449689,1740502893197,-500.0,0.00055068,120]
[354449690,1740502893227,-1814.15,0.00055068,120]
[354449691,1740502893260,-500.0,0.00055068,120]
[354449692,1740502893290,-3061.27,0.00055068,120]
[354449693,1740502893320,-1319.19,0.00055068,120]
[354449694,1740502893350,-500.0,0.00055068,120]
[354449695,1740502893380,-2383.93,0.00055068,120]
[354449696,1740502893408,-467.81805766,0.00055068,120]
[354449697,1740502893437,-4674.85,0.00055068,120]
[354449698,1740502893469,-500.0,0.00055068,120]
[354449699,1740502893501,-1329.61,0.00055068,120]
[354449700,1740502893534,-500.0,0.00055068,120]
[354449701,1740502893563,-1876.03,0.00055068,120]
[354449702,1740502893595,-282.499894,0.00055068,120]
[354449703,1740502893623,-1029.84,0.00055068,120]
[354449704,1740502893652,-500.0,0.00055068,120]
[354449705,1740502893681,-500.0,0.00055068,120]
[354449706,1740502893711,-2044.39,0.00055068,120]
[354449707,1740502893742,-3094.47,0.00055068,120]
[354449708,1740502893781,-4043.14,0.00055068,120]
[354449709,1740502893815,-500.0,0.00055068,120]
[354449710,1740502893846,-1621.69,0.00055068,120]
[354449711,1740502893877,-3387.22,0.00055068,120]
[354449712,1740502893906,-513.17458315,0.00055068,120]
[354449713,1740502893936,-628.87,0.00055068,120]
[354449714,1740502893967,-891.32,0.00055068,120]
[354449715,1740502893997,-228.136687,0.00055068,120]
[354449716,1740502894027,-500.0,0.00055068,120]
[354449717,1740502894056,-500.0,0.00055068,120]
[354449718,1740502894086,-1730.25,0.00055068,120]
[354449719,1740502894115,-500.0,0.00055068,120]
[354449720,1740502894143,-500.0,0.00055068,120]
[354449721,1740502894172,-2406.54,0.00055068,120]
[354449722,1740502894201,-500.0,0.00055068,120]
[354449723,1740502894229,-500.0,0.00055068,120]
[354449724,1740502894260,-1851.02,0.00055068,120]
[354449725,1740502894290,-500.0,0.00055069,120]
[354449726,1740502894318,-150.0,0.00055069,120]
[354449727,1740502894346,-500.0,0.00055069,120]
[354449728,1740502894374,-500.0,0.00055069,120]
[354449729,1740502894408,-1500.0,0.00055216,120]
[354449730,1740502894437,-1000.0,0.00055321,120]
[354449731,1740502894468,-255.94,0.00055342,120]
[354449732,1740502894500,-500.0,0.00055342,120]
[354449733,1740502894532,-503.2599383,0.00055342,120]
[354449734,1740502894560,-500.0,0.00055342,120]
[354449735,1740502894589,-503.26468609,0.00055342,120]
[354449736,1740502894615,-501.9383727,0.00055342,120]
[354449737,1740502894644,-647.3344165,0.00055342,120]
[354449738,1740502894673,-500.0,0.00055342,120]
[354449739,1740502894700,-502.44404003,0.00055342,120]
[354449740,1740502894728,-500.0,0.00055342,120]
[354449741,1740502894756,-500.0,0.00055342,120]
[354449742,1740502894786,-500.0,0.00055342,120]
[354449743,1740502894815,-502.83902657,0.00055342,120]
[354449744,1740502894843,-771.15,0.00055342,120]
[354449745,1740502894870,-500.0,0.00055342,120]
[354449746,1740502894898,-504.37598126,0.00055342,120]
[354449747,1740502894927,-500.0,0.00055342,120]
[354449748,1740502894956,-503.27184417,0.00055342,120]
[354449749,1740502894984,-3932.68,0.00055342,120]
[354449750,1740502895017,-500.0,0.00055342,120]
[354449751,1740502895046,-502.06939485,0.00055342,120]
[354449752,1740502895337,-505.34027584,0.00055342,120]
[354449753,1740502895365,-500.0,0.00055342,120]
[354449754,1740502895394,-500.0,0.00055342,120]
[354449755,1740502895423,-500.0,0.00055342,120]
[354449756,1740502895454,-500.0,0.00055342,120]
[354449757,1740502895488,-574.64,0.00055342,120]
[354449758,1740502895517,-500.0,0.00055342,120]
[354449759,1740502895553,-500.0,0.00055342,120]
[354449760,1740502895582,-506.61539699,0.00055342,120]
[354449761,1740502895613,-502.97708447,0.00055342,120]
[354449762,1740502895643,-505.42162557,0.00055342,120]
[354449763,1740502895673,-505.20051503,0.00055342,120]
[354449764,1740502895701,-500.0,0.00055342,120]
[354449765,1740502895729,-506.87436937,0.00055342,120]
[354449766,1740502895759,-1019.18,0.00055342,120]
[354449767,1740502895787,-500.0,0.00055342,120]
[354449768,1740502895815,-500.0,0.00055342,120]
[354449769,1740502895844,-502.76377416,0.00055342,120]
[354449770,1740502895872,-503.40080003,0.00055342,120]
[354449771,1740502895900,-508.48783105,0.00055342,120]
[354449772,1740502895929,-500.0,0.00055342,120]
[354449773,1740502895955,-500.0,0.00055342,120]
[354449774,1740502895984,-509.19485317,0.00055342,120]
[354449775,1740502896016,-512.98342734,0.00055342,120]
[354449776,1740502896043,-500.0,0.00055342,120]
[354449777,1740502896071,-500.0,0.00055342,120]
[354449778,1740502896099,-538.63634778,0.00055342,120]
[354449779,1740502896128,-502.93559593,0.00055342,120]
[354449780,1740502896156,-500.0,0.00055342,120]
[354449781,1740502896184,-503.30073297,0.00055342,120]
[354449782,1740502896212,-495.43200972,0.00055342,120]
[354449783,1740502896240,-502.86450486,0.00055342,120]
[354449784,1740502896269,-377.74908849,0.00055342,120]
[354449785,1740502896297,-500.0,0.00055342,120]
[354449786,1740502896326,-500.0,0.00055342,120]
[354449787,1740502896354,-501.19900391,0.00055342,120]
[354449788,1740502896392,-505.1794586,0.00055342,120]
[354449789,1740502896427,-500.0,0.00055342,120]
[354449790,1740502896458,-504.52089565,0.00055342,120]
[354449791,1740502896488,-503.16593678,0.00055342,120]
[354449792,1740502896523,-500.0,0.00055342,120]
[354449793,1740502896553,-501.31756471,0.00055342,120]
[354449794,1740502896584,-500.0,0.00055342,120]
[354449795,1740502896613,-500.0,0.00055342,120]
[354449796,1740502896641,-500.00018749,0.00055342,120]
[354449797,1740502896671,-500.0,0.00055342,120]
[354449798,1740502896702,-220.20844033,0.00055342,120]
[354449799,1740502896730,-504.46836164,0.00055342,120]
[354449800,1740502896761,-502.32138187,0.00055342,120]
[354449801,1740502896789,-567.52,0.00055342,120]
[354449802,1740502896816,-500.0,0.00055342,120]
[354449803,1740502896844,-500.0,0.00055342,120]
[354449804,1740502896872,-555.97964164,0.00055342,120]
[354449805,1740502896898,-513.91900325,0.00055342,120]
[354449806,1740502896925,-500.0,0.00055342,120]
[354449807,1740502896952,-500.0,0.00055342,120]
[354449808,1740502896979,-542.23904004,0.00055342,120]
[354449809,1740502897007,-500.0,0.00055342,120]
[354449810,1740502897042,-270.84417173,0.00055342,120]
[354449811,1740502897071,-173.45566977,0.00055342,120]
[354449812,1740502897101,-500.0,0.00055342,120]
[354449813,1740502897131,-533.85262723,0.00055342,120]
[354449814,1740502897165,-512.46335466,0.00055342,120]
[354449815,1740502897196,-249.62094679,0.00055342,120]
[354449816,1740502897227,-1578.9,0.00055342,120]
[354449817,1740502897259,-505.31685185,0.00055342,120]
[354449818,1740502897288,-500.0,0.00055342,120]
[354449819,1740502897316,-500.0,0.00055342,120]
[354449820,1740502897345,-502.0286834,0.00055342,120]
[354449821,1740502897372,-500.0,0.00055342,120]
[354449822,1740502897400,-844.03,0.00055342,120]
[354449823,1740502897427,-500.0,0.00055342,120]
[354449824,1740502897457,-503.01492177,0.00055342,120]
[354449825,1740502897488,-500.0,0.00055342,120]
[354449826,1740502897517,-500.0,0.00055342,120]
[354449827,1740502897545,-500.0,0.00055342,120]
[354449828,1740502897574,-500.0,0.00055342,120]
[354449829,1740502897602,-500.0,0.00055342,120]
[354449830,1740502897629,-500.0,0.00055342,120]
[354449831,1740502897657,-500.0,0.00055342,120]
[354449832,1740502897686,-217.14579044,0.00055342,120]
[354449833,1740502897713,-507.86768759,0.00055342,120]
[354449834,1740502897741,-500.0,0.00055342,120]
[354449835,1740502897769,-500.0,0.00055342,120]
[354449836,1740502897799,-500.0,0.00055342,120]
[354449837,1740502897827,-500.0,0.00055342,120]
[354449838,1740502897853,-500.0,0.00055342,120]
[354449839,1740502897882,-526.47353277,0.00055342,120]
[354449840,1740502897912,-500.0,0.00055342,120]
[354449841,1740502897941,-500.0,0.00055342,120]
[354449842,1740502897968,-593.31,0.00055342,120]
[354449843,1740502897998,-500.0,0.00055342,120]
[354449844,1740502898027,-500.0,0.00055342,120]
[354449845,1740502898056,-500.0,0.00055342,120]
[354449846,1740502898084,-616.04720105,0.00055342,120]
[354449847,1740502898372,-500.0,0.00055342,120]
[354449848,1740502898405,-500.0,0.00055342,120]
[354449849,1740502898434,-500.0,0.00055342,120]
[354449850,1740502898464,-501.82459748,0.00055342,120]
[354449851,1740502898495,-500.0,0.00055342,120]
[354449852,1740502898526,-500.0,0.00055342,120]
[354449853,1740502898554,-504.70848511,0.00055342,120]
[354449854,1740502898590,-500.0,0.00055342,120]
[354449855,1740502898617,-500.0,0.00055342,120]
[354449856,1740502898647,-679.87,0.00055342,120]
[354449857,1740502898675,-500.0,0.00055342,120]
[354449858,1740502898702,-501.33487186,0.00055342,120]
[354449859,1740502898731,-505.20014891,0.00055342,120]
[354449860,1740502898762,-500.0,0.00055342,120]
[354449861,1740502898791,-500.0,0.00055342,120]
[354449862,1740502898820,-177.72890044,0.00055342,120]
[354449863,1740502898848,-500.0,0.00055342,120]
[354449864,1740502898880,-1561.86,0.00055342,120]
[354449865,1740502898913,-500.0,0.00055342,120]
[354449866,1740502898946,-500.0,0.00055342,120]
[354449867,1740502898978,-500.0,0.00055342,120]
[354449868,1740502899016,-500.0,0.00055342,120]
[354449869,1740502899055,-500.0,0.00055342,120]
[354449870,1740502899094,-500.0,0.00055342,120]
[354449871,1740502899132,-500.0,0.00055342,120]
[354449872,1740502899167,-503.16826242,0.00055342,120]
[354449873,1740502899202,-500.0,0.00055342,120]
[354449874,1740502899236,-500.0,0.00055342,120]
[354449875,1740502899271,-500.0,0.00055342,120]
[354449876,1740502899306,-563.35,0.00055342,120]
[354449877,1740502899338,-500.0,0.00055342,120]
[354449878,1740502899372,-610.05,0.00055342,120]
[354449879,1740502899405,-500.0,0.00055342,120]
[354449880,1740502899439,-500.0,0.00055342,120]
[354449881,1740502899472,-500.0,0.00055342,120]
[354449882,1740502899508,-500.0,0.00055342,120]
[354449883,1740502899539,-500.0,0.00055342,120]
[354449884,1740502899571,-500.0,0.00055342,120]
[354449885,1740502899604,-741.23,0.00055342,120]
[354449886,1740502899635,-500.0,0.00055342,120]
[354449887,1740502899668,-500.0,0.00055342,120]
[354449888,1740502899700,-500.0,0.00055342,120]
[354449889,1740502899732,-500.0,0.00055342,120]
[354449890,1740502899763,-347.80526171,0.00055342,120]
[354449891,1740502899794,-469.20042357,0.00055342,120]
[354449892,1740502899833,-500.0,0.00055342,120]
[354449893,1740502899882,-593.30280163,0.00055342,120]
[354449894,1740502899932,-500.0,0.00055342,120]
[354449895,1740502899985,-500.0,0.00055342,120]
[354449896,1740502900038,-500.0,0.00055342,120]
[354449897,1740502900090,-500.0,0.00055342,120]
[354449898,1740502900140,-212.34653287,0.00055342,120]
[354449899,1740502900186,-501.80862582,0.00055342,120]
[354449900,1740502900230,-500.0,0.00055342,120]
[354449901,1740502900275,-500.0,0.00055342,120]
[354449902,1740502900320,-500.0,0.00055342,120]
[354449903,1740502900368,-2.85206692,0.00055342,120]
[354449905,1740502957637,250.0,0.00011968,2]
[354449935,1740503431568,-39.04,0.00011968,2]
[354449937,1740503431578,-177.89,0.00013699,2]
[354449938,1740503431587,-162.66,0.00026849,2]
[354449939,1740503431597,-200.0,0.00032699,30]
[354449940,1740503431607,-10494.44516826,0.000327,2]
[354449942,1740503431727,-7639.68573516,0.000327,2]
[354449943,1740503431785,-1296.74389998,0.000327,2]
[354449944,1740503431835,-680.87095136,0.000327,2]
[354449945,1740503431847,-1166.16607264,0.000327,2]
[354449946,1740503431889,-722.23935065,0.000327,2]